[Event "*** SCC Grand Prix: Titled Tuesday Blitz"]
[Site "Chess.com"]
[Date "2020.06.09"]
[Round "6"]
[White "VladimirBugayev"]
[Black "GelmanAlexander"]
[Result "1-0"]
[WhiteElo "2273"]
[BlackElo "2521"]
[TimeControl "180+1"]
[EndTime "10:07:38 PDT"]
[Termination "VladimirBugayev won by resignation"]

1. e4 {[%clk 0:02:49.4]} 1... c5 {[%clk 0:02:58.2]} 2. a3 {[%clk 0:02:48.7]}
2... b6 {[%clk 0:02:54.1]} 3. Nc3 {[%clk 0:02:47.7]} 3... Bb7 {[%clk 0:02:53.6]}
4. Bc4 {[%clk 0:02:48.2]} 4... e6 {[%clk 0:02:53.2]} 5. d3 {[%clk 0:02:48.2]}
5... Nf6 {[%clk 0:02:51.3]} 6. Bg5 {[%clk 0:02:41]} 6... h6 {[%clk 0:02:48.5]}
7. Bh4 {[%clk 0:02:39.3]} 7... g5 {[%clk 0:02:32.1]} 8. Bg3 {[%clk 0:02:38.5]}
8... d5 {[%clk 0:02:32.2]} 9. exd5 {[%clk 0:02:23.5]} 9... exd5 {[%clk
0:02:32.3]} 10. Qe2+ {[%clk 0:02:22.4]} 10... Be7 {[%clk 0:02:30.8]} 11. Bb5+
{[%clk 0:02:22]} 11... Nbd7 {[%clk 0:02:29.4]} 12. O-O-O {[%clk 0:02:00.7]}
12... a6 {[%clk 0:02:11.2]} 13. Bxd7+ {[%clk 0:01:59.3]} 13... Qxd7 {[%clk
0:02:12]} 14. Re1 {[%clk 0:01:55.7]} 14... Kf8 {[%clk 0:02:01]} 15. h4 {[%clk
0:01:53.6]} 15... g4 {[%clk 0:01:57.5]} 16. Qd2 {[%clk 0:01:41.2]} 16... d4
{[%clk 0:01:55.4]} 17. Ne4 {[%clk 0:01:38.7]} 17... Nxe4 {[%clk 0:01:53.9]} 18.
dxe4 {[%clk 0:01:38.2]} 18... Rd8 {[%clk 0:01:36.4]} 19. Ne2 {[%clk 0:01:24.8]}
19... c4 {[%clk 0:01:25.3]} 20. Be5 {[%clk 0:01:05.8]} 20... c3 {[%clk
0:01:25.5]} 21. Qxd4 {[%clk 0:01:01.9]} 21... cxb2+ {[%clk 0:01:24.8]} 22. Qxb2
{[%clk 0:00:54.5]} 22... Rg8 {[%clk 0:01:05.3]} 23. Rd1 {[%clk 0:00:53.6]} 23...
Qa4 {[%clk 0:00:50.9]} 24. Rxd8+ {[%clk 0:00:52.7]} 24... Bxd8 {[%clk
0:00:51.8]} 25. Bd6+ {[%clk 0:00:41]} 25... Ke8 {[%clk 0:00:43.9]} 26. Qe5+
{[%clk 0:00:40.4]} 26... Kd7 {[%clk 0:00:43.6]} 27. Nc3 {[%clk 0:00:38.6]} 27...
Qa5 {[%clk 0:00:34.2]} 28. Rd1 {[%clk 0:00:36.7]} 28... Qxe5 {[%clk 0:00:26.2]}
29. Bxe5+ {[%clk 0:00:35.9]} 29... Ke6 {[%clk 0:00:27.1]} 30. Bf4 {[%clk
0:00:31.8]} 30... Be7 {[%clk 0:00:27.3]} 31. Kb2 {[%clk 0:00:29.1]} 31... Rc8
{[%clk 0:00:21.8]} 32. Nd5 {[%clk 0:00:22.7]} 32... Bf8 {[%clk 0:00:20.1]} 33.
g3 {[%clk 0:00:18.5]} 33... f5 {[%clk 0:00:19.5]} 34. Nxb6 {[%clk 0:00:16]}
34... Rc6 {[%clk 0:00:17.4]} 35. Nd5 {[%clk 0:00:15.7]} 35... fxe4 {[%clk
0:00:17.4]} 36. Nc7+ {[%clk 0:00:15.6]} 36... Kf7 {[%clk 0:00:15.3]} 37. Rd7+
{[%clk 0:00:14.2]} 37... Kg6 {[%clk 0:00:13.1]} 38. Nd5 {[%clk 0:00:11.9]} 38...
Bg7+ {[%clk 0:00:12.1]} 39. Kc1 {[%clk 0:00:09.4]} 39... Bc8 {[%clk 0:00:10.2]}
40. Ne7+ {[%clk 0:00:09.3]} 40... Kf7 {[%clk 0:00:10.4]} 41. Nxc6+ {[%clk
0:00:08.6]} 41... Bxd7 {[%clk 0:00:10.6]} 42. Ne5+ {[%clk 0:00:07.8]} 42... Ke6
{[%clk 0:00:09.2]} 43. Nxd7 {[%clk 0:00:07.4]} 43... Kxd7 {[%clk 0:00:09.8]} 44.
Kd2 {[%clk 0:00:07.5]} 44... Kc6 {[%clk 0:00:09.9]} 45. Ke3 {[%clk 0:00:07.6]}
45... Kd5 {[%clk 0:00:10.2]} 46. c4+ {[%clk 0:00:06.1]} 46... Kxc4 {[%clk
0:00:10.2]} 47. Kxe4 {[%clk 0:00:06.6]} 47... Kb3 {[%clk 0:00:09]} 48. Bd6
{[%clk 0:00:06.6]} 48... Bb2 {[%clk 0:00:08.3]} 49. Kf5 {[%clk 0:00:06]} 49...
Bxa3 {[%clk 0:00:08.8]} 50. Bxa3 {[%clk 0:00:05.9]} 50... Kxa3 {[%clk 0:00:09]}
51. Kxg4 {[%clk 0:00:06.5]} 51... a5 {[%clk 0:00:09.7]} 52. f4 {[%clk 0:00:07]}
52... a4 {[%clk 0:00:10.3]} 53. f5 {[%clk 0:00:07.6]} 53... Kb4 {[%clk
0:00:10.9]} 54. f6 {[%clk 0:00:08.2]} 54... a3 {[%clk 0:00:11.8]} 55. f7 {[%clk
0:00:08.7]} 55... a2 {[%clk 0:00:12.7]} 56. f8=Q+ {[%clk 0:00:08.8]} 1-0

[Event "*** SCC Grand Prix: Titled Tuesday Blitz"]
[Site "Chess.com"]
[Date "2020.06.09"]
[Round "6"]
[White "tigra"]
[Black "Msb2"]
[Result "1-0"]
[WhiteElo "2734"]
[BlackElo "2835"]
[TimeControl "180+1"]
[EndTime "10:07:39 PDT"]
[Termination "tigra won on time"]

1. e4 {[%clk 0:03:00.9]} 1... e6 {[%clk 0:03:00.2]} 2. Nc3 {[%clk 0:02:59.9]}
2... d5 {[%clk 0:03:00.7]} 3. d4 {[%clk 0:03:00.2]} 3... Nf6 {[%clk 0:03:01.1]}
4. e5 {[%clk 0:02:58.6]} 4... Nfd7 {[%clk 0:03:01.2]} 5. f4 {[%clk 0:02:59.2]}
5... c5 {[%clk 0:03:01.9]} 6. Nf3 {[%clk 0:02:59.6]} 6... Nc6 {[%clk 0:03:02.6]}
7. Ne2 {[%clk 0:02:59.8]} 7... Be7 {[%clk 0:03:02.2]} 8. c3 {[%clk 0:02:59.9]}
8... O-O {[%clk 0:03:02.8]} 9. h4 {[%clk 0:02:59.4]} 9... b5 {[%clk 0:02:59.2]}
10. g3 {[%clk 0:02:54.2]} 10... b4 {[%clk 0:02:59.1]} 11. Kf2 {[%clk 0:02:51.6]}
11... bxc3 {[%clk 0:02:58.3]} 12. bxc3 {[%clk 0:02:51.7]} 12... f6 {[%clk
0:02:57]} 13. Kg2 {[%clk 0:02:51.1]} 13... Kh8 {[%clk 0:02:41.8]} 14. h5 {[%clk
0:02:45.7]} 14... Ba6 {[%clk 0:02:36.3]} 15. Qa4 {[%clk 0:02:42.4]} 15... Qb6
{[%clk 0:02:30.2]} 16. Ba3 {[%clk 0:02:19.6]} 16... fxe5 {[%clk 0:02:17.8]} 17.
dxe5 {[%clk 0:02:17.9]} 17... Bd3 {[%clk 0:02:05.4]} 18. Neg1 {[%clk 0:01:52.2]}
18... Be4 {[%clk 0:02:04.4]} 19. Re1 {[%clk 0:01:51.3]} 19... Bf5 {[%clk
0:01:21.9]} 20. Nh4 {[%clk 0:01:36.2]} 20... Bxh4 {[%clk 0:01:18.8]} 21. Rxh4
{[%clk 0:01:37.1]} 21... Rab8 {[%clk 0:01:12.5]} 22. g4 {[%clk 0:01:30.5]} 22...
Be4+ {[%clk 0:00:53.7]} 23. Rxe4 {[%clk 0:01:30]} 23... dxe4 {[%clk 0:00:54.6]}
24. Qxe4 {[%clk 0:01:28.8]} 24... Ne7 {[%clk 0:00:53.7]} 25. Bc4 {[%clk
0:01:13.9]} 25... Qb7 {[%clk 0:00:36.5]} 26. Qxb7 {[%clk 0:01:13.3]} 26... Rxb7
{[%clk 0:00:37.4]} 27. Bxe6 {[%clk 0:01:14.1]} 27... Rxf4 {[%clk 0:00:37.3]} 28.
Nf3 {[%clk 0:01:08.8]} 28... h6 {[%clk 0:00:31.1]} 29. Rh1 {[%clk 0:00:49.6]}
29... Ra4 {[%clk 0:00:30]} 30. Bc1 {[%clk 0:00:47.3]} 30... Nf8 {[%clk
0:00:30.2]} 31. Bb3 {[%clk 0:00:41.1]} 31... Rxg4+ {[%clk 0:00:29.6]} 32. Kh3
{[%clk 0:00:41.8]} 32... Re4 {[%clk 0:00:30.1]} 33. Rd1 {[%clk 0:00:41.5]} 33...
Rd7 {[%clk 0:00:27.4]} 34. Rf1 {[%clk 0:00:39.5]} 34... c4 {[%clk 0:00:17.1]}
35. Bc2 {[%clk 0:00:23.6]} 35... Re2 {[%clk 0:00:08]} 36. Nd4 {[%clk 0:00:22.4]}
36... Rxc2 {[%clk 0:00:05.2]} 37. Rxf8+ {[%clk 0:00:21.5]} 37... Kh7 {[%clk
0:00:05.6]} 38. Nxc2 {[%clk 0:00:22.1]} 38... Nc6 {[%clk 0:00:05.5]} 39. Rc8
{[%clk 0:00:09.1]} 39... Nxe5 {[%clk 0:00:05.3]} 40. Nd4 {[%clk 0:00:09.2]}
40... Rf7 {[%clk 0:00:04.9]} 41. Ne6 {[%clk 0:00:09]} 41... Nd7 {[%clk
0:00:03.6]} 42. Rd8 {[%clk 0:00:08.6]} 42... Re7 {[%clk 0:00:02.5]} 43. Rxd7
{[%clk 0:00:08.9]} 43... Rxe6 {[%clk 0:00:03]} 44. Rxa7 {[%clk 0:00:08.8]} 44...
Re5 {[%clk 0:00:03.6]} 45. Kg4 {[%clk 0:00:08.7]} 45... Re2 {[%clk 0:00:03.4]}
46. Bf4 {[%clk 0:00:08.8]} 46... Rg2+ {[%clk 0:00:02.3]} 47. Kf3 {[%clk
0:00:09.1]} 47... Rg1 {[%clk 0:00:02.2]} 48. Be5 {[%clk 0:00:09.4]} 1-0

[Event "*** SCC Grand Prix: Titled Tuesday Blitz"]
[Site "Chess.com"]
[Date "2020.06.09"]
[Round "6"]
[White "MartinMatthiesen"]
[Black "Fusikk"]
[Result "0-1"]
[WhiteElo "2375"]
[BlackElo "2581"]
[TimeControl "180+1"]
[EndTime "10:07:40 PDT"]
[Termination "Fusikk won on time"]

1. d4 {[%clk 0:03:00.9]} 1... Nf6 {[%clk 0:02:59.3]} 2. c4 {[%clk 0:03:00.3]}
2... e6 {[%clk 0:02:58.3]} 3. Nf3 {[%clk 0:02:59.5]} 3... d5 {[%clk 0:02:57.6]}
4. Nc3 {[%clk 0:02:58.7]} 4... c6 {[%clk 0:02:57.6]} 5. Bg5 {[%clk 0:02:56]}
5... dxc4 {[%clk 0:02:57.4]} 6. e4 {[%clk 0:02:55.4]} 6... b5 {[%clk 0:02:57.6]}
7. e5 {[%clk 0:02:55.1]} 7... h6 {[%clk 0:02:58]} 8. Bh4 {[%clk 0:02:55.2]} 8...
g5 {[%clk 0:02:58.5]} 9. Nxg5 {[%clk 0:02:55.1]} 9... hxg5 {[%clk 0:02:58.9]}
10. Bxg5 {[%clk 0:02:55.1]} 10... Be7 {[%clk 0:02:59.3]} 11. exf6 {[%clk
0:02:53.5]} 11... Bxf6 {[%clk 0:03:00.2]} 12. Bxf6 {[%clk 0:02:50.7]} 12... Qxf6
{[%clk 0:03:01.1]} 13. g3 {[%clk 0:02:47.9]} 13... Bb7 {[%clk 0:03:01.2]} 14.
Bg2 {[%clk 0:02:47.2]} 14... Na6 {[%clk 0:03:01.6]} 15. Nxb5 {[%clk 0:02:22.1]}
15... O-O-O {[%clk 0:02:44.7]} 16. Nxa7+ {[%clk 0:01:03.9]} 16... Kc7 {[%clk
0:02:44.1]} 17. Qa4 {[%clk 0:01:03]} 17... Qxd4 {[%clk 0:02:34.5]} 18. Nxc6
{[%clk 0:01:01.9]} 18... Qd2+ {[%clk 0:02:04.2]} 19. Kf1 {[%clk 0:01:01.3]}
19... Rd5 {[%clk 0:01:21.8]} 20. Qxc4 {[%clk 0:00:29.2]} 20... Rc5 {[%clk
0:01:15.1]} 21. Qd4 {[%clk 0:00:18.7]} 21... Rc1+ {[%clk 0:00:47.9]} 22. Rxc1
{[%clk 0:00:18]} 22... Qxc1+ {[%clk 0:00:48.8]} 23. Ke2 {[%clk 0:00:18.7]} 23...
Qc2+ {[%clk 0:00:44]} 24. Ke3 {[%clk 0:00:19]} 24... Bxc6 {[%clk 0:00:31.4]} 25.
Qxh8 {[%clk 0:00:10.8]} 25... Bxg2 {[%clk 0:00:29.5]} 26. Qe5+ {[%clk
0:00:10.8]} 26... Kb7 {[%clk 0:00:26.3]} 27. Re1 {[%clk 0:00:10.2]} 27... Nc5
{[%clk 0:00:23.3]} 28. Qc3 {[%clk 0:00:07.3]} 28... Qe4+ {[%clk 0:00:19.8]} 29.
Kd2 {[%clk 0:00:07.3]} 29... Qd5+ {[%clk 0:00:18.7]} 30. Ke3 {[%clk 0:00:05.1]}
30... Qf3+ {[%clk 0:00:16.5]} 31. Kd4 {[%clk 0:00:03.8]} 31... Qd5+ {[%clk
0:00:08.9]} 32. Ke3 {[%clk 0:00:03.7]} 32... Be4 {[%clk 0:00:05]} 33. Qb4+
{[%clk 0:00:02.9]} 33... Kc7 {[%clk 0:00:04.5]} 34. Qd4 {[%clk 0:00:03.5]} 34...
Qg5+ {[%clk 0:00:03.4]} 35. f4 {[%clk 0:00:03.3]} 35... Qh5 {[%clk 0:00:03.5]}
36. Rc1 {[%clk 0:00:02]} 36... Qf3+ {[%clk 0:00:03.6]} 37. Kd2 {[%clk
0:00:02.5]} 37... Qg2+ {[%clk 0:00:03.5]} 38. Kc3 {[%clk 0:00:02.9]} 38... Nd7
{[%clk 0:00:02.9]} 39. Kb4+ {[%clk 0:00:02.9]} 39... Kd8 {[%clk 0:00:03.3]} 40.
Rd1 {[%clk 0:00:02.9]} 40... Bd5 {[%clk 0:00:03.6]} 41. Ka3 {[%clk 0:00:02.8]}
41... Qc2 {[%clk 0:00:03.5]} 42. Rd3 {[%clk 0:00:01.5]} 42... Qc5+ {[%clk
0:00:03.6]} 43. Qxc5 {[%clk 0:00:01.3]} 43... Nxc5 {[%clk 0:00:04.5]} 44. Rd2
{[%clk 0:00:01.7]} 44... Kd7 {[%clk 0:00:04.4]} 45. b4 {[%clk 0:00:02]} 45...
Ne4 {[%clk 0:00:04.3]} 46. Re2 {[%clk 0:00:01]} 46... Kc6 {[%clk 0:00:04.6]} 47.
Kb2 {[%clk 0:00:01.3]} 47... Kb5 {[%clk 0:00:04.8]} 48. a3 {[%clk 0:00:01.5]}
48... Kc4 {[%clk 0:00:05.1]} 49. g4 {[%clk 0:00:01.7]} 49... Kd3 {[%clk
0:00:05.1]} 50. Re1 {[%clk 0:00:01.3]} 50... Nc3 {[%clk 0:00:05.2]} 0-1

[Event "*** SCC Grand Prix: Titled Tuesday Blitz"]
[Site "Chess.com"]
[Date "2020.06.09"]
[Round "6"]
[White "gm_rashid"]
[Black "Chessmatus"]
[Result "0-1"]
[WhiteElo "2352"]
[BlackElo "2478"]
[TimeControl "180+1"]
[EndTime "10:07:41 PDT"]
[Termination "Chessmatus won on time"]

1. e4 {[%clk 0:03:00.9]} 1... e5 {[%clk 0:02:54.5]} 2. Nf3 {[%clk 0:02:59.8]}
2... Nc6 {[%clk 0:02:54.6]} 3. Bc4 {[%clk 0:02:59.5]} 3... Bc5 {[%clk
0:02:54.4]} 4. Nc3 {[%clk 0:02:57.8]} 4... Nf6 {[%clk 0:02:52.8]} 5. d3 {[%clk
0:02:57.7]} 5... h6 {[%clk 0:02:52.6]} 6. Be3 {[%clk 0:02:56.8]} 6... Bxe3
{[%clk 0:02:38.3]} 7. fxe3 {[%clk 0:02:55.7]} 7... d6 {[%clk 0:02:38.7]} 8. O-O
{[%clk 0:02:55.2]} 8... O-O {[%clk 0:02:33.9]} 9. Qd2 {[%clk 0:02:52.5]} 9...
Be6 {[%clk 0:02:27.7]} 10. Bb3 {[%clk 0:02:50.1]} 10... Bxb3 {[%clk 0:02:09.2]}
11. axb3 {[%clk 0:02:48.7]} 11... d5 {[%clk 0:02:09.7]} 12. exd5 {[%clk
0:02:43.9]} 12... Nxd5 {[%clk 0:02:10.6]} 13. Nxd5 {[%clk 0:02:42.7]} 13... Qxd5
{[%clk 0:02:10.8]} 14. Qc3 {[%clk 0:02:41.5]} 14... Rfe8 {[%clk 0:02:05.3]} 15.
e4 {[%clk 0:02:40.7]} 15... Qd6 {[%clk 0:02:02.5]} 16. Rf2 {[%clk 0:02:40]}
16... Rad8 {[%clk 0:01:55.8]} 17. Raf1 {[%clk 0:02:39]} 17... Qb4 {[%clk
0:01:37.5]} 18. Nh4 {[%clk 0:02:37.7]} 18... Qxc3 {[%clk 0:01:33.7]} 19. bxc3
{[%clk 0:02:36]} 19... Rd7 {[%clk 0:01:33.9]} 20. g4 {[%clk 0:02:32.2]} 20...
Re6 {[%clk 0:01:31.7]} 21. Rg2 {[%clk 0:02:28.1]} 21... a5 {[%clk 0:01:21.7]}
22. g5 {[%clk 0:02:27.6]} 22... hxg5 {[%clk 0:01:21.9]} 23. Rxg5 {[%clk
0:02:27.4]} 23... Kf8 {[%clk 0:01:22]} 24. Nf5 {[%clk 0:02:09.9]} 24... g6
{[%clk 0:01:16.9]} 25. Ne3 {[%clk 0:02:08.5]} 25... b5 {[%clk 0:01:01.1]} 26. h4
{[%clk 0:02:05.2]} 26... Ne7 {[%clk 0:00:50.7]} 27. Ra1 {[%clk 0:01:53.9]} 27...
Ra6 {[%clk 0:00:48.4]} 28. Rxe5 {[%clk 0:01:52.1]} 28... c6 {[%clk 0:00:47.2]}
29. c4 {[%clk 0:01:46.4]} 29... Rb7 {[%clk 0:00:43.2]} 30. Rc5 {[%clk
0:01:32.8]} 30... a4 {[%clk 0:00:37.5]} 31. Kf2 {[%clk 0:01:14.9]} 31... axb3
{[%clk 0:00:35.5]} 32. Rb1 {[%clk 0:00:55.8]} 32... bxc2 {[%clk 0:00:30.2]} 33.
Nxc2 {[%clk 0:00:53.6]} 33... Ra2 {[%clk 0:00:26.6]} 34. cxb5 {[%clk 0:00:53]}
34... Rxb5 {[%clk 0:00:26.2]} 35. Rbxb5 {[%clk 0:00:51.1]} 35... cxb5 {[%clk
0:00:26.5]} 36. Ke3 {[%clk 0:00:51.1]} 36... Rb2 {[%clk 0:00:26.5]} 37. d4
{[%clk 0:00:42.5]} 37... b4 {[%clk 0:00:26.7]} 38. d5 {[%clk 0:00:37.9]} 38...
Ke8 {[%clk 0:00:18.8]} 39. Nd4 {[%clk 0:00:36.4]} 39... Rh2 {[%clk 0:00:17]} 40.
d6 {[%clk 0:00:27.3]} 40... Ng8 {[%clk 0:00:17.3]} 41. Rc7 {[%clk 0:00:21.4]}
41... Nf6 {[%clk 0:00:15.1]} 42. Nc6 {[%clk 0:00:09.8]} 42... b3 {[%clk
0:00:10]} 43. Re7+ {[%clk 0:00:07.7]} 43... Kf8 {[%clk 0:00:10.2]} 44. Rb7
{[%clk 0:00:06.6]} 44... b2 {[%clk 0:00:09]} 45. e5 {[%clk 0:00:05.4]} 45...
Rh3+ {[%clk 0:00:09]} 46. Kd4 {[%clk 0:00:04.8]} 46... Rxh4+ {[%clk 0:00:08.7]}
47. Kc3 {[%clk 0:00:02.2]} 47... Nd5+ {[%clk 0:00:08.6]} 48. Kxb2 {[%clk
0:00:01.9]} 48... Rh2+ {[%clk 0:00:07.4]} 0-1

[Event "*** SCC Grand Prix: Titled Tuesday Blitz"]
[Site "Chess.com"]
[Date "2020.06.09"]
[Round "6"]
[White "ChristianAlm"]
[Black "Quattroporte300"]
[Result "1-0"]
[WhiteElo "2451"]
[BlackElo "2230"]
[TimeControl "180+1"]
[EndTime "10:07:42 PDT"]
[Termination "ChristianAlm won on time"]

1. e4 {[%clk 0:03:00.9]} 1... e5 {[%clk 0:02:59.7]} 2. Nf3 {[%clk 0:02:53.9]}
2... Nc6 {[%clk 0:02:59.1]} 3. Nc3 {[%clk 0:02:53.9]} 3... Nf6 {[%clk
0:02:58.3]} 4. Nxe5 {[%clk 0:02:54.5]} 4... Nxe5 {[%clk 0:02:57.5]} 5. d4 {[%clk
0:02:55]} 5... Ng6 {[%clk 0:02:56]} 6. e5 {[%clk 0:02:55.6]} 6... d6 {[%clk
0:02:56.3]} 7. exf6 {[%clk 0:02:54.9]} 7... Qxf6 {[%clk 0:02:55.3]} 8. Bc4
{[%clk 0:02:52.9]} 8... Be7 {[%clk 0:02:51.7]} 9. O-O {[%clk 0:02:50.9]} 9... c6
{[%clk 0:02:51]} 10. d5 {[%clk 0:02:44.4]} 10... O-O {[%clk 0:02:48.4]} 11. Be3
{[%clk 0:02:43.8]} 11... Bf5 {[%clk 0:02:39.8]} 12. Re1 {[%clk 0:02:35]} 12...
c5 {[%clk 0:02:26.8]} 13. g3 {[%clk 0:02:34.7]} 13... a6 {[%clk 0:02:24.1]} 14.
a4 {[%clk 0:02:33.8]} 14... Ne5 {[%clk 0:02:23.1]} 15. Be2 {[%clk 0:02:25.5]}
15... Rfe8 {[%clk 0:02:17.2]} 16. h4 {[%clk 0:02:23.6]} 16... h6 {[%clk
0:02:15.5]} 17. a5 {[%clk 0:02:08.5]} 17... Qg6 {[%clk 0:02:10.5]} 18. Bf4
{[%clk 0:02:00.5]} 18... Bxc2 {[%clk 0:02:04.1]} 19. Qd2 {[%clk 0:01:53.8]}
19... Bf5 {[%clk 0:01:56.6]} 20. Bxe5 {[%clk 0:01:49.4]} 20... dxe5 {[%clk
0:01:56.4]} 21. h5 {[%clk 0:01:49]} 21... Qd6 {[%clk 0:01:48.5]} 22. Bc4 {[%clk
0:01:47.1]} 22... Bg5 {[%clk 0:01:47.3]} 23. Qe2 {[%clk 0:01:44.9]} 23... e4
{[%clk 0:01:44.2]} 24. Rad1 {[%clk 0:01:43.6]} 24... Rad8 {[%clk 0:01:39.1]} 25.
g4 {[%clk 0:01:40]} 25... Bh7 {[%clk 0:01:34.7]} 26. Bd3 {[%clk 0:01:28.3]}
26... e3 {[%clk 0:01:05.5]} 27. Bxh7+ {[%clk 0:01:18.8]} 27... Kxh7 {[%clk
0:01:06.4]} 28. Qf3 {[%clk 0:01:04.3]} 28... exf2+ {[%clk 0:01:05.2]} 29. Qxf2
{[%clk 0:01:04.4]} 29... Qf6 {[%clk 0:00:52.6]} 30. Qc2+ {[%clk 0:00:41.6]}
30... Kg8 {[%clk 0:00:52]} 31. Rf1 {[%clk 0:00:41]} 31... Be3+ {[%clk 0:00:44]}
32. Kg2 {[%clk 0:00:38.5]} 32... Qg5 {[%clk 0:00:33]} 33. Qf5 {[%clk 0:00:37]}
33... f6 {[%clk 0:00:27.1]} 34. d6 {[%clk 0:00:31.2]} 34... Bd4 {[%clk
0:00:25.8]} 35. Qf3 {[%clk 0:00:21.5]} 35... Re3 {[%clk 0:00:20.5]} 36. Qd5+
{[%clk 0:00:15.1]} 36... Qxd5+ {[%clk 0:00:21]} 37. Nxd5 {[%clk 0:00:16]} 37...
Re2+ {[%clk 0:00:21.7]} 38. Kf3 {[%clk 0:00:15.2]} 38... Rxb2 {[%clk 0:00:20.9]}
39. Ne7+ {[%clk 0:00:14.9]} 39... Kf7 {[%clk 0:00:20.6]} 40. Nf5 {[%clk
0:00:15.8]} 40... Rb3+ {[%clk 0:00:17.1]} 41. Ke4 {[%clk 0:00:16]} 41... Re8+
{[%clk 0:00:15.6]} 42. Kd5 {[%clk 0:00:10.7]} 42... Re5+ {[%clk 0:00:11.2]} 43.
Kc4 {[%clk 0:00:11]} 43... Rb4+ {[%clk 0:00:12.1]} 44. Kd3 {[%clk 0:00:11.2]}
44... Rb3+ {[%clk 0:00:12.2]} 45. Kc2 {[%clk 0:00:11.3]} 45... Rc3+ {[%clk
0:00:09.6]} 46. Kd2 {[%clk 0:00:11.7]} 46... Ra3 {[%clk 0:00:05.1]} 47. Rde1
{[%clk 0:00:11.7]} 47... Rd5 {[%clk 0:00:05]} 48. Kc2 {[%clk 0:00:11.5]} 48...
Ra2+ {[%clk 0:00:04.2]} 49. Kb3 {[%clk 0:00:10.5]} 49... Rb2+ {[%clk 0:00:04.6]}
50. Kc4 {[%clk 0:00:10.9]} 50... Re5 {[%clk 0:00:03.7]} 51. Rxe5 {[%clk
0:00:11.1]} 51... Bxe5 {[%clk 0:00:03.5]} 52. Rd1 {[%clk 0:00:10.9]} 52... Rc2+
{[%clk 0:00:01.4]} 53. Kd5 {[%clk 0:00:11.4]} 53... Ke8 {[%clk 0:00:01.4]} 54.
Ke6 {[%clk 0:00:11.5]} 1-0

[Event "*** SCC Grand Prix: Titled Tuesday Blitz"]
[Site "Chess.com"]
[Date "2020.06.09"]
[Round "6"]
[White "Irishchessman16"]
[Black "Khazieva_Elza"]
[Result "1-0"]
[WhiteElo "2463"]
[BlackElo "2236"]
[TimeControl "180+1"]
[EndTime "10:07:43 PDT"]
[Termination "Irishchessman16 won by checkmate"]

1. e4 {[%clk 0:03:00.9]} 1... c5 {[%clk 0:02:57.5]} 2. Nf3 {[%clk 0:03:00.9]}
2... d6 {[%clk 0:02:57.2]} 3. d4 {[%clk 0:03:01.5]} 3... cxd4 {[%clk 0:02:58.1]}
4. Nxd4 {[%clk 0:03:02.4]} 4... Nf6 {[%clk 0:02:58.4]} 5. Nc3 {[%clk 0:03:03]}
5... Nc6 {[%clk 0:02:58.7]} 6. h3 {[%clk 0:03:03.5]} 6... e5 {[%clk 0:02:55.2]}
7. Nde2 {[%clk 0:02:58.8]} 7... Be6 {[%clk 0:02:45.6]} 8. f4 {[%clk 0:02:54.1]}
8... Nh5 {[%clk 0:02:16.5]} 9. Qd3 {[%clk 0:02:39.9]} 9... exf4 {[%clk
0:01:41.3]} 10. Bxf4 {[%clk 0:02:38.8]} 10... Nxf4 {[%clk 0:01:20.4]} 11. Nxf4
{[%clk 0:02:38.1]} 11... Ne5 {[%clk 0:01:17.2]} 12. Qb5+ {[%clk 0:02:36.9]}
12... Bd7 {[%clk 0:01:13.4]} 13. Qxb7 {[%clk 0:02:35.7]} 13... Qh4+ {[%clk
0:01:08.5]} 14. Kd1 {[%clk 0:02:32.4]} 14... Rd8 {[%clk 0:00:54.9]} 15. Ncd5
{[%clk 0:02:29.2]} 15... Be7 {[%clk 0:00:45.1]} 16. Bb5 {[%clk 0:01:47.4]} 16...
g5 {[%clk 0:00:22.9]} 17. Nd3 {[%clk 0:01:07.1]} 17... Nxd3 {[%clk 0:00:13]} 18.
cxd3 {[%clk 0:01:04.2]} 18... g4 {[%clk 0:00:09.8]} 19. Bxd7+ {[%clk 0:00:49.6]}
19... Rxd7 {[%clk 0:00:10.7]} 20. Nc7+ {[%clk 0:00:49.5]} 20... Kf8 {[%clk
0:00:07.9]} 21. Ne6+ {[%clk 0:00:45.8]} 21... fxe6 {[%clk 0:00:05]} 22. Qxd7
{[%clk 0:00:44]} 22... Kg7 {[%clk 0:00:05.2]} 23. Qxe6 {[%clk 0:00:42.4]} 23...
Rf8 {[%clk 0:00:04.8]} 24. Qxg4+ {[%clk 0:00:42.1]} 24... Qxg4+ {[%clk
0:00:04.9]} 25. hxg4 {[%clk 0:00:43]} 25... Rf2 {[%clk 0:00:05.2]} 26. Rc1
{[%clk 0:00:40.7]} 26... Bg5 {[%clk 0:00:04.3]} 27. Rc2 {[%clk 0:00:39.3]} 27...
Rf7 {[%clk 0:00:02.1]} 28. d4 {[%clk 0:00:38.9]} 28... Rf4 {[%clk 0:00:02.1]}
29. Rc7+ {[%clk 0:00:37.1]} 29... Kg6 {[%clk 0:00:02.3]} 30. Rhxh7 {[%clk
0:00:36.6]} 30... Rxe4 {[%clk 0:00:02.2]} 31. Rcg7+ {[%clk 0:00:34]} 31... Kf6
{[%clk 0:00:02.5]} 32. Rf7+ {[%clk 0:00:34.2]} 32... Kg6 {[%clk 0:00:02.8]} 33.
Rhg7+ {[%clk 0:00:34.5]} 33... Kh6 {[%clk 0:00:03]} 34. Rh7+ {[%clk 0:00:23.8]}
34... Kg6 {[%clk 0:00:02.9]} 35. Rd7 {[%clk 0:00:21.3]} 35... Rxd4+ {[%clk
0:00:02.9]} 36. Ke1 {[%clk 0:00:21.3]} 36... Re4+ {[%clk 0:00:02.9]} 37. Kf1
{[%clk 0:00:21]} 37... Rf4+ {[%clk 0:00:02.9]} 38. Kg1 {[%clk 0:00:21.3]} 38...
Rd4 {[%clk 0:00:03.2]} 39. Rhg7+ {[%clk 0:00:20.4]} 39... Kh6 {[%clk 0:00:03.2]}
40. Rgf7 {[%clk 0:00:20.2]} 40... Rd1+ {[%clk 0:00:02.2]} 41. Kf2 {[%clk
0:00:20.5]} 41... Rd2+ {[%clk 0:00:02.1]} 42. Kf3 {[%clk 0:00:20.6]} 42... Rd3+
{[%clk 0:00:02.4]} 43. Ke4 {[%clk 0:00:20.6]} 43... Re3+ {[%clk 0:00:02.9]} 44.
Kd5 {[%clk 0:00:20.9]} 44... Re5+ {[%clk 0:00:02.4]} 45. Kxd6 {[%clk 0:00:20.5]}
45... Re4 {[%clk 0:00:01.8]} 46. Rh7+ {[%clk 0:00:20.6]} 46... Kg6 {[%clk
0:00:02]} 47. Rdg7+ {[%clk 0:00:19.8]} 47... Kf6 {[%clk 0:00:02.4]} 48. Rf7+
{[%clk 0:00:19.9]} 48... Kg6 {[%clk 0:00:02.4]} 49. Rhg7+ {[%clk 0:00:19.5]}
49... Kh6 {[%clk 0:00:02.7]} 50. Rg8 {[%clk 0:00:20]} 50... Rd4+ {[%clk
0:00:02.6]} 51. Ke6 {[%clk 0:00:19.9]} 51... Re4+ {[%clk 0:00:02.9]} 52. Kd5
{[%clk 0:00:20.1]} 52... Re2 {[%clk 0:00:02.5]} 53. Rf5 {[%clk 0:00:20.3]} 53...
Rd2+ {[%clk 0:00:02.4]} 54. Kc4 {[%clk 0:00:20.1]} 54... Rc2+ {[%clk 0:00:02.7]}
55. Kb3 {[%clk 0:00:20.5]} 55... Rxg2 {[%clk 0:00:01.8]} 56. Rfxg5 {[%clk
0:00:19.9]} 56... Rg3+ {[%clk 0:00:02.3]} 57. Ka4 {[%clk 0:00:19.9]} 57... Rg2
{[%clk 0:00:02.1]} 58. Rh5# {[%clk 0:00:19.2]} 1-0